lending/lending_fUSD_20240128
["ID","MTS","AMOUNT","RATE_DAILY","PERIOD"]
[312936966,1706470283431,-500.0,0.0005315,31]
[312936967,1706470283440,-500.0,0.0005315,31]
[312936968,1706470283448,-500.0,0.0005315,31]
[312936969,1706470283458,-500.0,0.0005315,31]
[312936970,1706470283467,-500.0,0.0005315,31]
[312936971,1706470283476,-500.0,0.0005315,31]
[312936972,1706470283485,-500.0,0.0005315,31]
[312936973,1706470283494,-500.0,0.0005315,31]
[312936974,1706470283503,-500.0,0.0005315,31]
[312936975,1706470283512,-500.0,0.0005315,31]
[312936976,1706470283521,-500.0,0.0005315,31]
[312936977,1706470283530,-500.0,0.0005315,31]
[312936978,1706470283539,-1012.49,0.0005315,7]
[312936979,1706470283548,-500.0,0.0005315,31]
[312936980,1706470283557,-600.0,0.0005315,120]
[312936981,1706470283566,-500.0,0.0005315,31]
[312936982,1706470283575,-500.0,0.0005315,31]
[312936983,1706470283584,-500.0,0.0005315,31]
[312936984,1706470283594,-500.0,0.0005315,31]
[312936985,1706470283603,-500.0,0.0005315,31]
[312936986,1706470283612,-500.0,0.0005315,31]
[312936987,1706470283622,-500.0,0.0005315,31]
[312936988,1706470283631,-500.0,0.0005315,31]
[312936989,1706470283640,-500.0,0.0005315,31]
[312936990,1706470283650,-500.0,0.0005315,31]
[312936991,1706470283659,-1000.0,0.0005315,2]
[312936992,1706470283668,-500.0,0.0005315,31]
[312936993,1706470283678,-500.0,0.0005315,31]
[312936994,1706470283687,-500.0,0.0005315,31]
[312936995,1706470283696,-500.0,0.0005315,31]
[312936996,1706470283706,-500.0,0.0005315,31]
[312936997,1706470283716,-524.66,0.0005315,31]
[312936998,1706470283725,-942.54,0.0005315,31]
[312936999,1706470283736,-500.0,0.0005315,31]
[312937000,1706470283746,-500.0,0.0005315,31]
[312937001,1706470283756,-500.0,0.0005315,31]
[312937002,1706470283765,-500.0,0.0005315,31]
[312937003,1706470283774,-350.89720026,0.0005315,31]
[312937004,1706470283783,-500.0,0.0005315,31]
[312937005,1706470283793,-500.0,0.0005315,31]
[312937006,1706470283802,-500.0,0.0005315,31]
[312937007,1706470283811,-500.0,0.0005315,31]
[312937008,1706470283820,-500.0,0.0005315,31]
[312937009,1706470283830,-500.0,0.0005315,31]
[312937010,1706470283839,-500.0,0.0005315,31]
[312937011,1706470283849,-500.0,0.0005315,31]
[312937012,1706470283859,-500.0,0.0005315,31]
[312937013,1706470283869,-500.0,0.0005315,31]
[312937014,1706470283878,-513.19,0.0005315,31]
[312937015,1706470283887,-797.06,0.0005315,2]
[312937016,1706470283896,-500.0,0.0005315,31]
[312937017,1706470283906,-1179.11,0.0005315,7]
[312937018,1706470283915,-500.0,0.0005315,31]
[312937019,1706470283926,-500.0,0.0005315,31]
[312937020,1706470283935,-500.0,0.0005315,31]
[312937021,1706470283945,-500.0,0.0005315,31]
[312937022,1706470283954,-500.0,0.0005315,14]
[312937023,1706470283964,-500.0,0.0005315,31]
[312937024,1706470283973,-500.0,0.0005315,31]
[312937025,1706470283982,-506.17,0.0005315,31]
[312937026,1706470283991,-500.0,0.0005315,31]
[312937027,1706470284004,-537.17,0.0005315,31]
[312937028,1706470284013,-546.99,0.0005315,31]
[312937029,1706470284022,-500.0,0.0005315,31]
[312937030,1706470284033,-500.0,0.0005315,31]
[312937031,1706470284043,-500.0,0.0005315,31]
[312937032,1706470284053,-500.0,0.0005315,31]
[312937033,1706470284064,-500.0,0.0005315,31]
[312937034,1706470284074,-500.0,0.0005315,31]
[312937035,1706470284083,-500.0,0.0005315,31]
[312937036,1706470284093,-500.0,0.0005315,31]
[312937037,1706470284102,-500.0,0.0005315,31]
[312937038,1706470284111,-500.0,0.0005315,31]
[312937039,1706470284121,-500.0,0.0005315,31]
[312937040,1706470284130,-500.0,0.0005315,31]
[312937041,1706470284140,-500.0,0.0005315,31]
[312937042,1706470284149,-500.0,0.0005315,31]
[312937043,1706470284158,-500.0,0.0005315,31]
[312937044,1706470284168,-500.0,0.0005315,31]
[312937045,1706470284177,-500.0,0.0005315,31]
[312937046,1706470284186,-500.02,0.0005315,31]
[312937047,1706470284195,-500.0,0.0005315,31]
[312937048,1706470284204,-500.0,0.0005315,31]
[312937049,1706470284213,-500.0,0.0005315,31]
[312937050,1706470284222,-500.0,0.0005315,31]
[312937051,1706470284231,-500.0,0.0005315,31]
[312937052,1706470284241,-500.0,0.0005315,31]
[312937053,1706470284250,-500.0,0.0005315,31]
[312937054,1706470284260,-500.0,0.0005315,31]
[312937055,1706470284269,-500.0,0.0005315,31]
[312937056,1706470284279,-500.0,0.0005315,31]
[312937057,1706470284288,-1073.27353496,0.0005315,31]
[312937058,1706470284297,-500.0,0.0005315,31]
[312937059,1706470284306,-1086.47,0.0005315,31]
[312937060,1706470284315,-500.0,0.0005315,31]
[312937061,1706470284325,-500.0,0.0005315,31]
[312937062,1706470284334,-500.0,0.0005315,31]
[312937063,1706470284343,-500.0,0.0005315,31]
[312937064,1706470284353,-473.17728813,0.0005315,31]
[312937065,1706470284363,-500.0,0.0005315,31]
[312937066,1706470284373,-500.0,0.0005315,31]
[312937067,1706470284382,-500.0,0.0005315,31]
[312937068,1706470284392,-500.0,0.0005315,31]
[312937069,1706470284402,-500.0,0.0005315,31]
[312937070,1706470284411,-500.0,0.0005315,31]
[312937071,1706470284421,-500.0,0.0005315,31]
[312937072,1706470284430,-500.0,0.0005315,31]
[312937073,1706470284440,-500.0,0.0005315,31]
[312937074,1706470284449,-500.0,0.0005315,31]
[312937075,1706470284458,-500.0,0.0005315,31]
[312937076,1706470284469,-500.0,0.0005315,31]
[312937077,1706470284478,-500.0,0.0005315,31]
[312937078,1706470284488,-500.0,0.0005315,31]
[312937079,1706470284497,-500.0,0.0005315,31]
[312937080,1706470284506,-500.0,0.0005315,31]
[312937081,1706470284517,-500.0,0.0005315,31]
[312937082,1706470284526,-500.0,0.0005315,31]
[312937083,1706470284536,-500.0,0.0005315,31]
[312937084,1706470284545,-500.0,0.0005315,31]
[312937085,1706470284554,-500.0,0.0005315,31]
[312937086,1706470284564,-500.0,0.0005315,31]
[312937087,1706470284573,-500.0,0.0005315,31]
[312937088,1706470284582,-500.0,0.0005315,31]
[312937089,1706470284591,-1000.0,0.0005315,7]
[312937090,1706470284600,-500.0,0.0005315,31]
[312937091,1706470284610,-500.0,0.0005315,31]
[312937092,1706470284619,-500.0,0.0005315,31]
[312937093,1706470284628,-500.0,0.0005315,31]
[312937094,1706470284637,-500.0,0.0005315,31]
[312937095,1706470284646,-500.0,0.0005315,31]
[312937096,1706470284656,-500.0,0.0005315,31]
[312937097,1706470284665,-500.0,0.0005315,31]
[312937098,1706470284675,-500.0,0.0005315,31]
[312937099,1706470284684,-500.0,0.0005315,31]
[312937100,1706470284693,-500.0,0.0005315,30]
[312937101,1706470284703,-500.0,0.0005315,31]
[312937102,1706470284712,-500.0,0.0005315,31]
[312937103,1706470284721,-500.0,0.0005315,31]
[312937104,1706470284730,-500.0,0.0005315,31]
[312937105,1706470284740,-500.0,0.0005315,31]
[312937106,1706470284749,-500.0,0.0005315,31]
[312937107,1706470284758,-500.0,0.0005315,31]
[312937108,1706470284768,-500.0,0.0005315,31]
[312937109,1706470284777,-500.0,0.0005315,31]
[312937110,1706470284786,-500.0,0.0005315,31]
[312937111,1706470284795,-500.0,0.0005315,31]
[312937112,1706470284804,-500.0,0.0005315,31]
[312937113,1706470284813,-500.0,0.0005315,31]
[312937114,1706470284822,-958.05,0.0005315,31]
[312937115,1706470284831,-500.0,0.0005315,31]
[312937116,1706470284840,-256.08260687,0.0005315,31]
[312937117,1706470284849,-500.0,0.0005315,31]
[312937118,1706470284858,-866.15,0.0005315,31]
[312937119,1706470284867,-500.0,0.0005315,31]
[312937120,1706470284877,-1000.0,0.0005315,7]
[312937121,1706470284886,-1465.95,0.0005315,31]
[312937122,1706470284895,-500.0,0.0005315,31]
[312937123,1706470284904,-558.8,0.0005315,31]
[312937124,1706470284914,-702.82,0.0005315,31]
[312937125,1706470284923,-500.0,0.0005315,31]
[312937126,1706470284932,-528.63,0.0005315,31]
[312937127,1706470284941,-1050.63,0.0005315,31]
[312937128,1706470284951,-500.0,0.0005315,31]
[312937129,1706470284960,-2515.85,0.0005315,5]
[312937130,1706470284970,-538.33,0.0005315,31]
[312937131,1706470284979,-500.0,0.0005315,31]
[312937132,1706470284988,-500.0,0.0005315,31]
[312937133,1706470284998,-518.95,0.0005315,31]
[312937134,1706470285010,-585.24,0.0005315,31]
[312937135,1706470285019,-540.09,0.0005315,31]
[312937136,1706470285028,-500.0,0.0005315,31]
[312937137,1706470285037,-500.0,0.0005315,31]
[312937138,1706470285046,-500.0,0.0005315,31]
[312937139,1706470285056,-500.0,0.0005315,31]
[312937140,1706470285066,-500.0,0.0005315,31]
[312937141,1706470285076,-500.0,0.0005315,31]
[312937142,1706470285086,-604.09,0.0005315,31]
[312937143,1706470285095,-500.0,0.0005315,31]
[312937144,1706470285103,-667.98,0.0005315,2]
[312937145,1706470285112,-980.3,0.0005315,31]
[312937146,1706470285122,-500.0,0.0005315,31]
[312937147,1706470285131,-1037.01,0.0005315,31]
[312937148,1706470285140,-500.0,0.0005315,31]
[312937149,1706470285150,-935.8,0.0005315,31]
[312937150,1706470285161,-1201.8,0.0005315,31]
[312937151,1706470285170,-500.0,0.0005315,31]
[312937152,1706470285178,-500.0,0.0005315,31]
[312937153,1706470285187,-649.1,0.0005315,31]
[312937154,1706470285196,-153.79459058,0.0005315,60]
[312937155,1706470285205,-1061.64,0.0005315,31]
[312937156,1706470285214,-500.0,0.0005315,31]
[312937157,1706470285223,-500.0,0.0005315,31]
[312937158,1706470285232,-500.0,0.0005315,31]
[312937159,1706470285241,-934.77,0.0005315,31]
[312937160,1706470285250,-687.49,0.0005315,31]
[312937161,1706470285259,-500.0,0.0005315,31]
[312937162,1706470285268,-710.56,0.0005315,31]
[312937163,1706470285278,-596.07,0.0005315,31]
[312937164,1706470285287,-500.0,0.0005315,31]
[312937165,1706470285295,-500.0,0.0005315,31]
[312937166,1706470285304,-500.0,0.0005315,31]
[312937167,1706470285314,-735.56,0.0005315,31]
[312937168,1706470285323,-500.0,0.0005315,31]
[312937169,1706470285332,-500.0,0.0005315,31]
[312937170,1706470285341,-500.0,0.0005315,31]
[312937171,1706470285350,-500.0,0.0005315,31]
[312937172,1706470285361,-500.0,0.0005315,31]
[312937173,1706470285370,-500.0,0.0005315,31]
[312937174,1706470285379,-692.89,0.0005315,31]
[312937175,1706470285388,-500.0,0.0005315,31]
[312937176,1706470285397,-760.18,0.0005315,31]
[312937177,1706470285406,-500.0,0.0005315,31]
[312937178,1706470285416,-500.0,0.0005315,31]
[312937179,1706470285425,-500.0,0.0005315,31]
[312937180,1706470285434,-500.0,0.0005315,31]
[312937181,1706470285444,-500.0,0.0005315,31]
[312937182,1706470285454,-537.29,0.0005315,31]
[312937183,1706470285464,-500.0,0.0005315,31]
[312937184,1706470285474,-500.0,0.0005315,31]
[312937185,1706470285483,-670.03,0.0005315,31]
[312937186,1706470285492,-500.0,0.0005315,31]
[312937187,1706470285501,-949.98,0.0005315,31]
[312937188,1706470285510,-500.0,0.0005315,31]
[312937189,1706470285519,-500.0,0.0005315,31]
[312937190,1706470285529,-500.0,0.0005315,31]
[312937191,1706470285538,-500.0,0.0005315,31]
[312937192,1706470285547,-1013.95,0.0005315,31]
[312937193,1706470285556,-500.0,0.0005315,31]
[312937194,1706470285565,-500.0,0.0005315,31]
[312937195,1706470285575,-500.0,0.0005315,31]
[312937196,1706470285584,-500.0,0.0005315,31]
[312937197,1706470285594,-635.57,0.0005315,31]
[312937198,1706470285604,-500.0,0.0005315,31]
[312937199,1706470285613,-500.0,0.0005315,31]
[312937200,1706470285623,-500.0,0.0005315,31]
[312937201,1706470285633,-600.05,0.0005315,31]
[312937202,1706470285642,-500.0,0.0005315,31]
[312937203,1706470285651,-500.0,0.0005315,31]
[312937204,1706470285661,-500.0,0.0005315,31]
[312937205,1706470285671,-500.0,0.0005315,31]
[312937206,1706470285681,-500.0,0.0005315,31]
[312937207,1706470285691,-500.0,0.0005315,31]
[312937208,1706470285701,-500.0,0.0005315,31]
[312937209,1706470285711,-500.0,0.0005315,31]
[312937210,1706470285721,-576.89,0.0005315,31]
[312937211,1706470285730,-913.1,0.0005315,31]
[312937212,1706470285739,-500.0,0.0005315,31]
[312937213,1706470285749,-500.0,0.0005315,31]
[312937214,1706470285758,-500.0,0.0005315,31]
[312937215,1706470285767,-699.2,0.0005315,31]
[312937216,1706470285777,-859.35,0.0005315,31]
[312937217,1706470285786,-500.0,0.0005315,31]
[312937218,1706470285795,-500.0,0.0005315,31]
[312937219,1706470285805,-500.0,0.0005315,31]
[312937220,1706470285814,-500.0,0.0005315,31]
[312937221,1706470285824,-500.0,0.0005315,31]
[312937222,1706470285833,-500.0,0.0005315,31]
[312937223,1706470285843,-500.0,0.0005315,31]
[312937224,1706470285853,-500.0,0.0005315,31]
[312937225,1706470285862,-500.0,0.0005315,31]
[312937226,1706470285871,-500.0,0.0005315,31]
[312937227,1706470285881,-566.54,0.0005315,31]
[312937228,1706470285890,-500.0,0.0005315,31]
[312937229,1706470285900,-500.0,0.0005315,31]
[312937230,1706470285909,-500.0,0.0005315,31]
[312937231,1706470285920,-500.0,0.0005315,31]
[312937232,1706470285930,-500.0,0.0005315,31]
[312937233,1706470285940,-500.0,0.0005315,31]
[312937234,1706470285949,-500.0,0.0005315,31]
[312937235,1706470285959,-663.0,0.0005315,31]
[312937236,1706470285968,-500.0,0.0005315,31]
[312937237,1706470285977,-524.36,0.0005315,31]
[312937238,1706470285987,-500.0,0.0005315,31]
[312937239,1706470285996,-500.0,0.0005315,31]
[312937240,1706470286010,-500.0,0.0005315,31]
[312937241,1706470286021,-993.17,0.0005315,5]
[312937242,1706470286030,-500.0,0.0005315,31]
[312937243,1706470286041,-500.0,0.0005315,31]
[312937244,1706470286051,-1426.33,0.0005315,31]
[312937245,1706470286062,-1254.98,0.0005315,7]
[312937246,1706470286071,-500.0,0.0005315,31]
[312937247,1706470286082,-1000.0,0.0005315,31]
[312937248,1706470286094,-593.23,0.0005315,31]
[312937249,1706470286105,-500.0,0.0005315,31]
[312937250,1706470286115,-500.0,0.0005315,31]
[312937251,1706470286126,-787.1,0.0005315,31]
[312937252,1706470286136,-500.0,0.0005315,31]
[312937253,1706470286145,-500.0,0.0005315,31]
[312937254,1706470286154,-1003.11,0.0005315,31]
[312937255,1706470286165,-727.11,0.0005315,31]
[312937256,1706470286176,-500.0,0.0005315,31]
[312937257,1706470286185,-500.0,0.0005315,31]
[312937258,1706470286196,-500.0,0.0005315,31]
[312937259,1706470286207,-500.0,0.0005315,31]
[312937260,1706470286367,-500.0,0.0005315,14]
[312937261,1706470286378,-865.33,0.0005315,31]
[312937262,1706470286387,-500.0,0.0005315,31]
[312937263,1706470286398,-729.98,0.0005315,31]
[312937264,1706470286408,-500.0,0.0005315,31]
[312937265,1706470286418,-500.0,0.0005315,31]
[312937266,1706470286428,-500.0,0.0005315,31]
[312937267,1706470286438,-571.22,0.0005315,31]
[312937268,1706470286447,-500.0,0.0005315,31]
[312937269,1706470286458,-500.0,0.0005315,31]
[312937270,1706470286468,-500.0,0.0005315,31]
[312937271,1706470286477,-733.2,0.0005315,31]
[312937272,1706470286487,-829.02,0.0005315,31]
[312937273,1706470286498,-377.78434989,0.0005315,31]
[312937274,1706470286509,-647.04,0.0005315,31]
[312937275,1706470286518,-500.0,0.0005315,31]
[312937276,1706470286530,-500.0,0.0005315,31]
[312937277,1706470286541,-500.0,0.0005315,31]
[312937278,1706470286550,-500.0,0.0005315,31]
[312937279,1706470286560,-573.62,0.0005315,31]
[312937280,1706470286570,-621.62,0.0005315,31]
[312937281,1706470286579,-500.0,0.0005315,31]
[312937282,1706470286589,-500.0,0.0005315,31]
[312937283,1706470286598,-834.44,0.0005315,31]
[312937284,1706470286608,-851.16,0.0005315,31]
[312937285,1706470286617,-875.07,0.0005315,31]
[312937286,1706470286627,-1018.07,0.0005315,31]
[312937287,1706470286637,-1079.37,0.0005315,31]
[312937288,1706470286646,-500.0,0.0005315,31]
[312937289,1706470286655,-995.96,0.0005315,31]
[312937290,1706470286665,-500.0,0.0005315,31]
[312937291,1706470286675,-780.4,0.0005315,31]
[312937292,1706470286684,-500.0,0.0005315,31]
[312937293,1706470286696,-500.0,0.0005315,31]
[312937294,1706470286705,-500.0,0.0005315,31]
[312937295,1706470286714,-500.0,0.0005315,31]
[312937296,1706470286724,-500.0,0.0005315,31]
[312937297,1706470286733,-500.0,0.0005315,7]
[312937298,1706470286742,-709.25,0.0005315,31]
[312937299,1706470286752,-500.0,0.0005315,31]
[312937300,1706470286761,-500.0,0.0005315,31]
[312937301,1706470286771,-500.0,0.0005315,31]
[312937302,1706470286780,-500.0,0.0005315,31]
[312937303,1706470286790,-500.0,0.0005315,31]
[312937304,1706470286800,-500.0,0.0005315,31]
[312937305,1706470286810,-500.0,0.0005315,31]
[312937306,1706470286819,-500.0,0.0005315,31]
[312937307,1706470286829,-500.0,0.0005315,31]
[312937308,1706470286839,-500.0,0.0005315,31]
[312937309,1706470286848,-500.0,0.0005315,31]
[312937310,1706470286858,-500.0,0.0005315,31]
[312937311,1706470286867,-1254.44,0.0005315,31]
[312937312,1706470286877,-667.21,0.0005315,31]
[312937313,1706470286887,-500.0,0.0005315,31]
[312937314,1706470286896,-500.0,0.0005315,31]
[312937315,1706470286905,-500.0,0.0005315,31]
[312937316,1706470286914,-500.0,0.0005315,31]
[312937317,1706470286924,-366.39257877,0.0005315,31]
[312937318,1706470286933,-500.0,0.0005315,31]
[312937319,1706470286943,-500.0,0.0005315,31]
[312937320,1706470286952,-500.0,0.0005315,31]
[312937321,1706470286962,-500.0,0.0005315,31]
[312937322,1706470286971,-500.0,0.0005315,31]
[312937323,1706470286981,-500.0,0.0005315,31]
[312937324,1706470286990,-752.97,0.0005315,31]
[312937325,1706470287004,-500.0,0.0005315,31]
[312937326,1706470287015,-521.4,0.0005315,31]
[312937327,1706470287026,-500.0,0.0005315,31]
[312937328,1706470287037,-769.32,0.0005315,31]
[312937329,1706470287048,-500.0,0.0005315,31]
[312937330,1706470287058,-500.0,0.0005315,31]
[312937331,1706470287067,-780.39,0.0005315,31]
[312937332,1706470287077,-673.98,0.0005315,31]
[312937333,1706470287087,-500.0,0.0005315,31]
[312937334,1706470287097,-500.0,0.0005315,31]
[312937335,1706470287106,-500.0,0.0005315,31]
[312937336,1706470287115,-806.83,0.0005315,31]
[312937337,1706470287126,-500.0,0.0005315,31]
[312937338,1706470287135,-655.92,0.0005315,31]
[312937339,1706470287145,-500.0,0.0005315,31]
[312937340,1706470287155,-809.17,0.0005315,31]
[312937341,1706470287165,-500.0,0.0005315,31]
[312937342,1706470287175,-500.0,0.0005315,31]
[312937343,1706470287184,-500.0,0.0005315,31]
[312937344,1706470287194,-922.9,0.0005315,31]
[312937345,1706470287204,-500.0,0.00053151,90]
[312937346,1706470287214,-500.0,0.00053151,30]
[312937347,1706470287224,-158.32544091,0.00053153,60]
[312937348,1706470287233,-360.32885597,0.00053156,60]
[312937349,1706470287242,-360.32885597,0.00053157,60]
[312937350,1706470287251,-153.79459058,0.00053158,60]
[312937351,1706470287261,-151.44914822,0.00053163,60]
[312937352,1706470287270,-154.39943299,0.00053168,60]
[312937353,1706470287280,-155.61324619,0.00053175,60]
[312937354,1706470287289,-175.82197617,0.00053184,60]
[312937355,1706470287299,-500.0,0.00053196,120]
[312937356,1706470287308,-15526.47,0.000532,30]
[312937357,1706470287317,-300.0,0.000532,14]
[312937358,1706470287328,-175.82197617,0.000532,60]
[312937359,1706470287338,-161.33670803,0.00053216,60]
[312937360,1706470287348,-201.18589708,0.00053218,60]
[312937361,1706470287358,-161.33670803,0.00053222,60]
[312937362,1706470287368,-150.0,0.00053229,30]
[312937363,1706470287378,-150.0,0.00053229,30]
[312937364,1706470287387,-161.33670803,0.00053234,60]
[312937365,1706470287397,-168.56932696,0.00053236,60]
[312937366,1706470287406,-158.50191844,0.00053251,60]
[312937367,1706470287415,-155.61324619,0.00053253,60]
[312937368,1706470287425,-201.18589708,0.00053255,60]
[312937369,1706470287434,-153.61013365,0.00053263,60]
[312937370,1706470287444,-157.30336053,0.00053269,60]
[312937371,1706470287454,-150.50894753,0.0005328,60]
[312937372,1706470287464,-1313.94861369,0.00053281,60]
[312937373,1706470287473,-489.71573801,0.00053283,60]
[312937374,1706470287485,-489.71573801,0.00053285,60]
[312937375,1706470287495,-919.66051627,0.00053296,60]
[312937376,1706470287504,-150.50894753,0.00053297,60]
[312937377,1706470287514,-8910.19153874,0.000533,7]
[312937378,1706470287523,-193528.80637526,0.000533,31]
[312937379,1706470287532,-155.61324619,0.00053306,60]
[312937380,1706470287542,-437.86906363,0.0005331,2]
[312937381,1706470287551,-919.66051627,0.00053313,60]
[312937382,1706470287561,-216.0,0.0005333,30]
[312937383,1706470287571,-205.0,0.0005333,30]
[312937384,1706470287580,-204.0,0.0005333,30]
[312937385,1706470287589,-206.0,0.0005333,30]
[312937386,1706470287599,-206.0,0.0005333,30]
[312937387,1706470287608,-204.0,0.0005333,30]
[312937388,1706470287617,-206.0,0.0005333,30]
[312937389,1706470287628,-204.0,0.0005333,30]
[312937390,1706470287638,-204.0,0.0005333,30]
[312937391,1706470287647,-204.0,0.0005333,30]
[312937392,1706470287658,-206.0,0.0005333,30]
[312937393,1706470287667,-202.0,0.0005333,30]
[312937394,1706470287676,-175.62864033,0.0005333,60]
[312937395,1706470287686,-158.52895406,0.00053337,60]
[312937396,1706470287696,-150.50894753,0.00053338,60]
[312937397,1706470287706,-161.33670803,0.00053339,60]
[312937398,1706470287715,-175.82197617,0.0005334,60]
[312937399,1706470287725,-168.86088493,0.00053356,60]
[312937400,1706470287735,-489.71573801,0.00053359,60]
[312937401,1706470287745,-1313.94861369,0.00053362,60]
[312937402,1706470287755,-919.66051627,0.00053362,60]
[312937403,1706470287764,-157.72167214,0.00053367,60]
[312937404,1706470287774,-158.50191844,0.00053368,60]
[312937405,1706470287784,-155.61324619,0.00053368,60]
[312937406,1706470287794,-489.71573801,0.00053372,60]
[312937407,1706470287803,-919.66051627,0.00053375,60]
[312937408,1706470287813,-201.18589708,0.0005338,60]
[312937409,1706470287823,-919.66051627,0.0005338,60]
[312937410,1706470287833,-161.33670803,0.00053381,60]
[312937411,1706470287842,-919.66051627,0.00053384,60]
[312937412,1706470287851,-150.0,0.00053386,30]
[312937413,1706470287861,-175.82197617,0.00053394,60]
[312937414,1706470287870,-153.79459058,0.00053395,60]
[312937415,1706470287880,-175.82197617,0.00053398,60]
[312937416,1706470287889,-1000.0,0.00053399,45]
[312937417,1706470287899,-1000.0,0.00053399,45]
[312937418,1706470287907,-1000.0,0.00053399,45]
[312937419,1706470287917,-1000.0,0.00053399,45]
[312937420,1706470287926,-1000.0,0.00053399,45]
[312937421,1706470287935,-1000.0,0.00053399,45]
[312937422,1706470287945,-1000.0,0.00053399,45]
[312937423,1706470287954,-1000.0,0.00053399,45]
[312937424,1706470287963,-1000.0,0.00053399,45]
[312937425,1706470287972,-1000.0,0.00053399,45]
[312937426,1706470287983,-1000.0,0.00053399,45]
[312937427,1706470287991,-100000.0,0.000534,120]
[312937428,1706470288003,-31777.5232,0.000534,120]
[312937429,1706470288013,-161.33670803,0.000534,60]
[312937430,1706470288022,-157.0406716,0.00053406,60]
[312937431,1706470288031,-500.0,0.00053413,120]
[312937432,1706470288041,-151.44914822,0.00053418,60]
[312937433,1706470288051,-10509.86123107,0.00053424,31]
[312937434,1706470288060,-500.0,0.00053424,31]
[312937435,1706470288069,-500.0,0.00053424,31]
[312937436,1706470288080,-500.0,0.00053424,31]
[312937437,1706470288089,-165.37675095,0.00053424,31]
[312937438,1706470288098,-500.0,0.00053424,31]
[312937439,1706470288107,-500.0,0.00053424,31]
[312937440,1706470288116,-500.0,0.00053424,31]
[312937441,1706470288127,-500.0,0.00053424,31]
[312937442,1706470288136,-563.76,0.00053424,31]
[312937443,1706470288145,-500.0,0.00053424,31]
[312937444,1706470288154,-500.0,0.00053424,31]
[312937445,1706470288162,-500.0,0.00053424,31]
[312937446,1706470288172,-500.0,0.00053424,31]
[312937447,1706470288181,-500.0,0.00053424,31]
[312937448,1706470288190,-500.0,0.00053424,31]
[312937449,1706470288200,-500.0,0.00053424,31]
[312937450,1706470288208,-859.61,0.00053424,2]
[312937451,1706470288217,-649.60497291,0.00053424,14]
[312937452,1706470288227,-1182.48,0.00053424,31]
[312937453,1706470288236,-500.0,0.00053424,31]
[312937454,1706470288246,-500.0,0.00053424,31]
[312937455,1706470288255,-516.72,0.00053424,31]
[312937456,1706470288264,-625.59888645,0.00053424,31]
[312937457,1706470288273,-1605.92,0.00053424,31]
[312937458,1706470288283,-206.68438287,0.00053424,7]
[312937459,1706470288293,-500.0,0.00053424,2]
[312937460,1706470288302,-717.72,0.00053424,31]
[312937461,1706470288314,-500.0,0.00053424,20]
[312937462,1706470288325,-1132.61,0.00053424,31]
[312937463,1706470288334,-500.0,0.00053424,15]
[312937464,1706470288344,-500.0,0.00053424,31]
[312937465,1706470288354,-1180.53,0.00053424,2]